[Event "*** Titled Tuesday Blitz"]
[Site "Chess.com"]
[Date "2020.05.19"]
[Round "5"]
[White "AnishGiri"]
[Black "Too_Stupid_To_Play"]
[Result "1-0"]
[WhiteElo "2989"]
[BlackElo "2315"]
[TimeControl "180+1"]
[EndTime "12:56:32 PDT"]
[Termination "AnishGiri won by checkmate"]

1. e4 {[%clk 0:03:00.9]} 1... b6 {[%clk 0:02:56.5]} 2. d4 {[%clk 0:03:00.4]}
2... Bb7 {[%clk 0:02:54.5]} 3. Bd3 {[%clk 0:02:58.6]} 3... Nf6 {[%clk 0:02:55]}
4. Qe2 {[%clk 0:02:53.3]} 4... Nc6 {[%clk 0:02:52]} 5. c3 {[%clk 0:02:44.9]}
5... e5 {[%clk 0:02:52.1]} 6. Nf3 {[%clk 0:02:38.3]} 6... exd4 {[%clk
0:02:52.2]} 7. O-O {[%clk 0:02:38.3]} 7... dxc3 {[%clk 0:02:51.2]} 8. Nxc3
{[%clk 0:02:37.7]} 8... d6 {[%clk 0:02:40.6]} 9. Bb5 {[%clk 0:02:17.7]} 9... Nd7
{[%clk 0:02:13.2]} 10. Nd5 {[%clk 0:02:07.5]} 10... Be7 {[%clk 0:02:07.3]} 11.
Qc2 {[%clk 0:02:05.9]} 11... Ndb8 {[%clk 0:01:52.6]} 12. Nd4 {[%clk 0:02:00.9]}
12... Qd7 {[%clk 0:01:47.1]} 13. Nf5 {[%clk 0:01:47.1]} 13... Bf6 {[%clk
0:01:29.1]} 14. Nxf6+ {[%clk 0:01:39.5]} 14... gxf6 {[%clk 0:01:30]} 15. Qc3
{[%clk 0:01:40]} 15... Qd8 {[%clk 0:00:58.9]} 16. Bg5 {[%clk 0:01:07]} 16... Rg8
{[%clk 0:00:41.8]} 17. Bxf6 {[%clk 0:01:04.4]} 17... Qd7 {[%clk 0:00:42.2]} 18.
Rae1 {[%clk 0:00:51.8]} 18... a6 {[%clk 0:00:37.1]} 19. Ba4 {[%clk 0:00:46.9]}
19... b5 {[%clk 0:00:33.5]} 20. Bb3 {[%clk 0:00:47.2]} 20... b4 {[%clk
0:00:17.9]} 21. Qh3 {[%clk 0:00:47.5]} 21... Ne5 {[%clk 0:00:14.6]} 22. Bxe5
{[%clk 0:00:43.4]} 22... dxe5 {[%clk 0:00:11.6]} 23. Qxh7 {[%clk 0:00:43.9]}
23... Rf8 {[%clk 0:00:08]} 24. Qh4 {[%clk 0:00:37.1]} 24... Rg8 {[%clk
0:00:06.5]} 25. Rd1 {[%clk 0:00:33.7]} 25... Qc8 {[%clk 0:00:02.9]} 26. Qe7#
{[%clk 0:00:31.8]} 1-0

[Event "*** Titled Tuesday Blitz"]
[Site "Chess.com"]
[Date "2020.05.19"]
[Round "5"]
[White "Shubinkirill2003"]
[Black "parmupill123"]
[Result "1-0"]
[WhiteElo "2573"]
[BlackElo "2407"]
[TimeControl "180+1"]
[EndTime "12:56:32 PDT"]
[Termination "Shubinkirill2003 won by resignation"]

1. e4 {[%clk 0:03:00.9]} 1... e6 {[%clk 0:03:00.9]} 2. d4 {[%clk 0:03:00.2]}
2... d5 {[%clk 0:02:50.5]} 3. Nc3 {[%clk 0:03:01]} 3... Bb4 {[%clk 0:02:48.4]}
4. e5 {[%clk 0:02:59.9]} 4... c5 {[%clk 0:02:48.3]} 5. a3 {[%clk 0:03:00.2]}
5... Bxc3+ {[%clk 0:02:48.6]} 6. bxc3 {[%clk 0:03:01.1]} 6... Qc7 {[%clk
0:02:48.9]} 7. Qg4 {[%clk 0:03:00.2]} 7... f6 {[%clk 0:02:48.8]} 8. Nf3 {[%clk
0:02:56.3]} 8... c4 {[%clk 0:02:47.8]} 9. a4 {[%clk 0:02:53.1]} 9... Nc6 {[%clk
0:02:39.6]} 10. Qg3 {[%clk 0:02:29.6]} 10... Qf7 {[%clk 0:02:34]} 11. Ba3 {[%clk
0:02:26.1]} 11... Nge7 {[%clk 0:02:33.6]} 12. Be2 {[%clk 0:02:20.5]} 12... O-O
{[%clk 0:02:05.4]} 13. O-O {[%clk 0:02:18.9]} 13... Kh8 {[%clk 0:02:02.9]} 14.
Rae1 {[%clk 0:02:11.5]} 14... Re8 {[%clk 0:01:51.5]} 15. exf6 {[%clk 0:02:03.2]}
15... gxf6 {[%clk 0:01:50.9]} 16. Bd1 {[%clk 0:02:01.9]} 16... Nf5 {[%clk
0:01:43.8]} 17. Qf4 {[%clk 0:01:59.3]} 17... Bd7 {[%clk 0:01:36.3]} 18. g4
{[%clk 0:01:50.4]} 18... Ng7 {[%clk 0:01:10.3]} 19. Kh1 {[%clk 0:01:29]} 19...
Qg6 {[%clk 0:01:02.4]} 20. Rg1 {[%clk 0:01:19.7]} 20... Ne7 {[%clk 0:00:55.1]}
21. h4 {[%clk 0:01:19.1]} 21... Bxa4 {[%clk 0:00:34.1]} 22. h5 {[%clk
0:01:16.4]} 22... Nxh5 {[%clk 0:00:33.8]} 23. gxh5 {[%clk 0:01:13.1]} 23...
Qxh5+ {[%clk 0:00:34.7]} 24. Nh4 {[%clk 0:01:02.3]} 24... Qf7 {[%clk 0:00:30.2]}
25. Bh5 {[%clk 0:00:56.3]} 25... Qf8 {[%clk 0:00:05.2]} 26. Bxe8 {[%clk
0:00:55]} 26... Rxe8 {[%clk 0:00:04.3]} 27. Rxe6 {[%clk 0:00:49.3]} 27... Bxc2
{[%clk 0:00:03.6]} 28. Rxf6 {[%clk 0:00:41.5]} 28... Be4+ {[%clk 0:00:02.5]} 29.
f3 {[%clk 0:00:41.2]} 1-0

[Event "*** Titled Tuesday Blitz"]
[Site "Chess.com"]
[Date "2020.05.19"]
[Round "5"]
[White "WeAintSurePal"]
[Black "Margarita2907"]
[Result "1-0"]
[WhiteElo "2305"]
[BlackElo "2029"]
[TimeControl "180+1"]
[EndTime "12:56:33 PDT"]
[Termination "WeAintSurePal won by resignation"]

1. d4 {[%clk 0:03:00.9]} 1... Nf6 {[%clk 0:02:57]} 2. Bf4 {[%clk 0:02:58.9]}
2... e6 {[%clk 0:02:57.1]} 3. e3 {[%clk 0:02:56.9]} 3... d5 {[%clk 0:02:57.5]}
4. Nf3 {[%clk 0:02:56.5]} 4... Bd6 {[%clk 0:02:57]} 5. Nbd2 {[%clk 0:02:56.7]}
5... O-O {[%clk 0:02:57]} 6. c3 {[%clk 0:02:56.9]} 6... b6 {[%clk 0:02:56.8]} 7.
Bd3 {[%clk 0:02:52.5]} 7... Bb7 {[%clk 0:02:56.5]} 8. Ne5 {[%clk 0:02:48.8]}
8... c5 {[%clk 0:02:55.9]} 9. Ndf3 {[%clk 0:02:48.8]} 9... Nc6 {[%clk
0:02:54.6]} 10. h4 {[%clk 0:02:38.4]} 10... h5 {[%clk 0:02:48.1]} 11. Nxc6
{[%clk 0:02:32.3]} 11... Bxc6 {[%clk 0:02:46.8]} 12. Bxd6 {[%clk 0:02:32.8]}
12... Qxd6 {[%clk 0:02:46.1]} 13. Ne5 {[%clk 0:02:33.7]} 13... Bb7 {[%clk
0:02:42.9]} 14. g4 {[%clk 0:02:29.6]} 14... Nxg4 {[%clk 0:02:37.4]} 15. Nxg4
{[%clk 0:02:29.3]} 15... hxg4 {[%clk 0:02:37.4]} 16. Qxg4 {[%clk 0:02:28.1]}
16... e5 {[%clk 0:02:36.7]} 17. Rg1 {[%clk 0:02:27.1]} 17... Qf6 {[%clk
0:02:26.2]} 18. dxe5 {[%clk 0:02:25.7]} 18... Qxe5 {[%clk 0:02:21.1]} 19. O-O-O
{[%clk 0:02:26.1]} 19... Bc8 {[%clk 0:02:03.6]} 20. Qg2 {[%clk 0:02:23.6]} 20...
Be6 {[%clk 0:01:53.5]} 21. f4 {[%clk 0:02:22.8]} 21... Qf6 {[%clk 0:01:52.2]}
22. f5 {[%clk 0:02:11.2]} 22... Bd7 {[%clk 0:01:47.7]} 23. Qg5 {[%clk 0:02:08]}
23... Qxg5 {[%clk 0:01:45.4]} 24. hxg5 {[%clk 0:02:08.5]} 24... f6 {[%clk
0:01:39.6]} 25. e4 {[%clk 0:01:56.6]} 25... Bc6 {[%clk 0:01:31.4]} 26. g6 {[%clk
0:01:50.4]} 26... Rad8 {[%clk 0:01:23.7]} 27. Rg4 {[%clk 0:01:49.8]} 27... Rfe8
{[%clk 0:01:20.7]} 28. exd5 {[%clk 0:01:44.2]} 28... Bxd5 {[%clk 0:01:18.1]} 29.
Bb5 {[%clk 0:01:44.5]} 29... Bf3 {[%clk 0:00:57.9]} 30. Rxd8 {[%clk 0:01:27.4]}
30... Rxd8 {[%clk 0:00:56]} 31. Rg3 {[%clk 0:01:19.9]} 31... Be4 {[%clk
0:00:42.4]} 32. Bc4+ {[%clk 0:01:18.6]} 32... Kf8 {[%clk 0:00:42.3]} 33. Be6
{[%clk 0:01:18.5]} 33... Bd5 {[%clk 0:00:36.8]} 34. Rd3 {[%clk 0:01:15.7]} 34...
Bxe6 {[%clk 0:00:28.7]} 35. Rxd8+ {[%clk 0:01:16.6]} 35... Ke7 {[%clk
0:00:28.6]} 36. Ra8 {[%clk 0:01:16.4]} 36... Bxf5 {[%clk 0:00:28.2]} 37. Rxa7+
{[%clk 0:01:16]} 37... Kf8 {[%clk 0:00:27.8]} 38. Rb7 {[%clk 0:01:14.4]} 38...
Bxg6 {[%clk 0:00:26.4]} 39. Rxb6 {[%clk 0:01:14.7]} 39... Be4 {[%clk 0:00:21]}
40. Kd2 {[%clk 0:01:12.6]} 40... g5 {[%clk 0:00:20.8]} 41. Rxf6+ {[%clk
0:01:10.5]} 41... Ke7 {[%clk 0:00:19.7]} 42. Rb6 {[%clk 0:01:11.4]} 42... g4
{[%clk 0:00:19.2]} 43. Ke3 {[%clk 0:01:11.2]} 43... Bf3 {[%clk 0:00:19.3]} 44.
a4 {[%clk 0:01:10.1]} 1-0

[Event "*** Titled Tuesday Blitz"]
[Site "Chess.com"]
[Date "2020.05.19"]
[Round "5"]
[White "mamonika"]
[Black "robertofabregas"]
[Result "1-0"]
[WhiteElo "1972"]
[BlackElo "2105"]
[TimeControl "180+1"]
[EndTime "12:56:34 PDT"]
[Termination "mamonika won on time"]

1. e4 {[%clk 0:03:00.9]} 1... c5 {[%clk 0:01:44.4]} 2. Nf3 {[%clk 0:02:59.3]}
2... d6 {[%clk 0:01:44.6]} 3. d4 {[%clk 0:02:59.5]} 3... cxd4 {[%clk 0:01:43.3]}
4. Nxd4 {[%clk 0:03:00.4]} 4... Nf6 {[%clk 0:01:40.8]} 5. Nc3 {[%clk 0:03:00.2]}
5... e6 {[%clk 0:01:41]} 6. Be2 {[%clk 0:02:59.9]} 6... a6 {[%clk 0:01:40.7]} 7.
O-O {[%clk 0:02:59.8]} 7... b5 {[%clk 0:01:40.3]} 8. a3 {[%clk 0:02:45.1]} 8...
Bb7 {[%clk 0:01:39]} 9. Bf3 {[%clk 0:02:45.1]} 9... Nbd7 {[%clk 0:01:38.1]} 10.
Re1 {[%clk 0:02:37.1]} 10... Qc7 {[%clk 0:01:37.5]} 11. Bg5 {[%clk 0:02:13.5]}
11... Be7 {[%clk 0:01:36.8]} 12. h3 {[%clk 0:02:12.7]} 12... O-O {[%clk
0:01:35.9]} 13. Qd2 {[%clk 0:01:47.9]} 13... Ne5 {[%clk 0:01:34.1]} 14. Bxf6
{[%clk 0:01:41.7]} 14... Bxf6 {[%clk 0:01:32.1]} 15. Be2 {[%clk 0:01:41.5]}
15... Rac8 {[%clk 0:01:24.2]} 16. Rad1 {[%clk 0:01:37.8]} 16... Rfd8 {[%clk
0:01:23.5]} 17. f4 {[%clk 0:01:26.2]} 17... Nc4 {[%clk 0:01:12.9]} 18. Bxc4
{[%clk 0:01:26.2]} 18... Qxc4 {[%clk 0:01:09.5]} 19. Kh1 {[%clk 0:01:17.4]}
19... d5 {[%clk 0:01:00.7]} 20. e5 {[%clk 0:01:17.1]} 20... Be7 {[%clk
0:00:55.6]} 21. f5 {[%clk 0:01:14.1]} 21... Bxa3 {[%clk 0:00:18.4]} 22. fxe6
{[%clk 0:01:04.8]} 22... fxe6 {[%clk 0:00:14.6]} 23. Nxe6 {[%clk 0:01:01.3]}
23... Re8 {[%clk 0:00:14.5]} 24. Nxg7 {[%clk 0:00:40.1]} 24... Kxg7 {[%clk
0:00:10.7]} 25. Qg5+ {[%clk 0:00:39.9]} 25... Kh8 {[%clk 0:00:11.1]} 26. Qf6+
{[%clk 0:00:37.8]} 26... Kg8 {[%clk 0:00:11.4]} 27. Re3 {[%clk 0:00:33.7]} 27...
Rc7 {[%clk 0:00:01.5]} 28. Rg3+ {[%clk 0:00:33.5]} 1-0

[Event "*** Titled Tuesday Blitz"]
[Site "Chess.com"]
[Date "2020.05.19"]
[Round "5"]
[White "pfalcon1949"]
[Black "Pedrada88"]
[Result "0-1"]
[WhiteElo "1963"]
[BlackElo "2364"]
[TimeControl "180+1"]
[EndTime "12:56:35 PDT"]
[Termination "Pedrada88 won on time"]

1. d4 {[%clk 0:03:00.9]} 1... Nf6 {[%clk 0:02:59.5]} 2. c4 {[%clk 0:03:01]} 2...
b6 {[%clk 0:02:59.9]} 3. Nc3 {[%clk 0:02:59.6]} 3... Bb7 {[%clk 0:03:00.2]} 4.
d5 {[%clk 0:02:58.9]} 4... e6 {[%clk 0:02:59.9]} 5. e4 {[%clk 0:02:58.2]} 5...
exd5 {[%clk 0:02:58.5]} 6. exd5 {[%clk 0:02:57.9]} 6... Bb4 {[%clk 0:02:58.3]}
7. Ne2 {[%clk 0:02:57.1]} 7... O-O {[%clk 0:02:58.1]} 8. Be3 {[%clk 0:02:56.4]}
8... Re8 {[%clk 0:02:58.1]} 9. Qd2 {[%clk 0:02:56.2]} 9... Na6 {[%clk
0:02:57.4]} 10. Ng3 {[%clk 0:02:54.7]} 10... Bc5 {[%clk 0:02:55.8]} 11. Be2
{[%clk 0:02:46]} 11... Bxe3 {[%clk 0:02:54.3]} 12. fxe3 {[%clk 0:02:44.6]} 12...
Nc5 {[%clk 0:02:55.2]} 13. O-O {[%clk 0:02:41.3]} 13... d6 {[%clk 0:02:54.2]}
14. Bd3 {[%clk 0:02:30.9]} 14... Bc8 {[%clk 0:02:49.8]} 15. e4 {[%clk
0:02:28.8]} 15... a5 {[%clk 0:02:41.8]} 16. Rae1 {[%clk 0:02:23.4]} 16... Ncd7
{[%clk 0:02:38.5]} 17. Nf5 {[%clk 0:02:20.7]} 17... Ne5 {[%clk 0:02:38.5]} 18.
Nb5 {[%clk 0:01:51]} 18... Ba6 {[%clk 0:02:30.3]} 19. a4 {[%clk 0:01:46.7]}
19... Bxb5 {[%clk 0:02:29.7]} 20. cxb5 {[%clk 0:01:42.6]} 20... Nfd7 {[%clk
0:02:13.4]} 21. Re3 {[%clk 0:01:25.9]} 21... Nc5 {[%clk 0:02:10.1]} 22. Rg3
{[%clk 0:01:10.8]} 22... Ng6 {[%clk 0:02:02.3]} 23. Bc2 {[%clk 0:01:05.7]} 23...
Rxe4 {[%clk 0:01:56.2]} 24. Bxe4 {[%clk 0:00:55.6]} 24... Nxe4 {[%clk
0:01:57.1]} 25. Qd4 {[%clk 0:00:51.7]} 25... Nf6 {[%clk 0:01:55.5]} 26. h4
{[%clk 0:00:47.7]} 26... h5 {[%clk 0:01:49.5]} 27. Nh6+ {[%clk 0:00:39.2]} 27...
Kf8 {[%clk 0:01:45.6]} 28. Nf5 {[%clk 0:00:27.7]} 28... Rc8 {[%clk 0:01:07.4]}
29. Rgf3 {[%clk 0:00:25.9]} 29... Ne5 {[%clk 0:01:03.9]} 30. Rg3 {[%clk
0:00:23.9]} 30... Nfg4 {[%clk 0:01:02.9]} 31. Rf4 {[%clk 0:00:19.1]} 31... g6
{[%clk 0:01:02.6]} 32. Rgxg4 {[%clk 0:00:04.1]} 32... hxg4 {[%clk 0:00:59.7]}
33. Rxg4 {[%clk 0:00:04.5]} 33... gxf5 {[%clk 0:00:58.3]} 34. Rg5 {[%clk
0:00:03.3]} 34... Qf6 {[%clk 0:00:56.7]} 35. Qf4 {[%clk 0:00:02.7]} 35... Nd3
{[%clk 0:00:45.5]} 0-1

[Event "*** Titled Tuesday Blitz"]
[Site "Chess.com"]
[Date "2020.05.19"]
[Round "5"]
[White "zurzan"]
[Black "RobPeresian"]
[Result "0-1"]
[WhiteElo "1904"]
[BlackElo "2284"]
[TimeControl "180+1"]
[EndTime "12:56:35 PDT"]
[Termination "RobPeresian won by resignation"]

1. f4 {[%clk 0:03:00.9]} 1... d5 {[%clk 0:02:58]} 2. Nf3 {[%clk 0:03:00.7]} 2...
Nf6 {[%clk 0:02:56.3]} 3. g3 {[%clk 0:03:00.8]} 3... c6 {[%clk 0:02:56.5]} 4.
Bg2 {[%clk 0:03:01.7]} 4... Qb6 {[%clk 0:02:56.9]} 5. e3 {[%clk 0:02:58.8]} 5...
Bg4 {[%clk 0:02:56.4]} 6. O-O {[%clk 0:02:56.6]} 6... c5 {[%clk 0:02:51.8]} 7.
c3 {[%clk 0:02:55.7]} 7... Nc6 {[%clk 0:02:49]} 8. d4 {[%clk 0:02:54.3]} 8... e6
{[%clk 0:02:44.8]} 9. a4 {[%clk 0:02:52.2]} 9... h6 {[%clk 0:02:43.3]} 10. Nbd2
{[%clk 0:02:49]} 10... g5 {[%clk 0:02:40.2]} 11. h3 {[%clk 0:02:47.2]} 11...
Bxf3 {[%clk 0:02:35.2]} 12. Nxf3 {[%clk 0:02:47.1]} 12... Ne4 {[%clk 0:02:31.3]}
13. Qe1 {[%clk 0:02:42.3]} 13... gxf4 {[%clk 0:02:23.6]} 14. gxf4 {[%clk
0:02:30.2]} 14... O-O-O {[%clk 0:02:11.2]} 15. Ne5 {[%clk 0:02:15.3]} 15... Rg8
{[%clk 0:01:51.3]} 16. Nxc6 {[%clk 0:02:14.4]} 16... Qxc6 {[%clk 0:01:48.6]} 17.
Kh2 {[%clk 0:02:12.3]} 17... f5 {[%clk 0:01:44.2]} 18. Rg1 {[%clk 0:02:08.9]}
18... Be7 {[%clk 0:01:37.3]} 19. Bxe4 {[%clk 0:02:07.6]} 19... dxe4 {[%clk
0:01:38.2]} 20. Bd2 {[%clk 0:02:03.7]} 20... Rdf8 {[%clk 0:01:19.2]} 21. Rxg8
{[%clk 0:02:02.2]} 21... Rxg8 {[%clk 0:01:18.9]} 22. Qf2 {[%clk 0:02:03]} 22...
Qe8 {[%clk 0:01:14.9]} 23. a5 {[%clk 0:01:58.1]} 23... a6 {[%clk 0:01:10.4]} 24.
Rg1 {[%clk 0:01:56.5]} 24... Rxg1 {[%clk 0:01:08.6]} 25. Qxg1 {[%clk 0:01:56.4]}
25... Qh5 {[%clk 0:01:08.4]} 26. Qg2 {[%clk 0:01:54.4]} 26... Kd7 {[%clk
0:01:00.5]} 27. b4 {[%clk 0:01:54.1]} 27... c4 {[%clk 0:00:51.5]} 28. Be1 {[%clk
0:01:43.3]} 28... Kc6 {[%clk 0:00:46.4]} 29. Bg3 {[%clk 0:01:42]} 29... Qd1
{[%clk 0:00:43.8]} 30. Be1 {[%clk 0:01:35.2]} 30... Qxe1 {[%clk 0:00:41.8]} 31.
Qg7 {[%clk 0:01:34.7]} 31... Bh4 {[%clk 0:00:32.1]} 32. d5+ {[%clk 0:01:31.9]}
32... exd5 {[%clk 0:00:25]} 33. Qg6+ {[%clk 0:01:25.3]} 33... Kb5 {[%clk
0:00:25]} 34. Qb6+ {[%clk 0:01:23]} 34... Ka4 {[%clk 0:00:24.6]} 35. Qg6 {[%clk
0:01:00.4]} 35... Qg3+ {[%clk 0:00:20.6]} 36. Qxg3 {[%clk 0:00:59.6]} 36...
Bxg3+ {[%clk 0:00:21.5]} 37. Kxg3 {[%clk 0:01:00.1]} 37... Kb3 {[%clk
0:00:22.4]} 38. Kh4 {[%clk 0:00:53.8]} 38... Kxc3 {[%clk 0:00:22.7]} 39. Kh5
{[%clk 0:00:54.5]} 39... Kxb4 {[%clk 0:00:23]} 40. Kg6 {[%clk 0:00:54.4]} 40...
c3 {[%clk 0:00:23.9]} 41. Kxf5 {[%clk 0:00:54.9]} 41... c2 {[%clk 0:00:24.8]}
42. Ke6 {[%clk 0:00:54.2]} 42... c1=Q {[%clk 0:00:25.7]} 43. f5 {[%clk
0:00:54.7]} 43... Qxe3 {[%clk 0:00:25.7]} 44. f6 {[%clk 0:00:55.1]} 44... d4
{[%clk 0:00:26.1]} 45. f7 {[%clk 0:00:55.7]} 45... Qxh3+ {[%clk 0:00:26.2]} 46.
Ke7 {[%clk 0:00:55.3]} 46... Qf5 {[%clk 0:00:26.4]} 47. f8=Q {[%clk 0:00:54.7]}
47... Qxf8+ {[%clk 0:00:26.1]} 48. Kxf8 {[%clk 0:00:55.6]} 48... e3 {[%clk
0:00:26.3]} 0-1

[Event "*** Titled Tuesday Blitz"]
[Site "Chess.com"]
[Date "2020.05.19"]
[Round "5"]
[White "MYMChessAcademy"]
[Black "FGHSMN"]
[Result "0-1"]
[WhiteElo "2342"]
[BlackElo "2513"]
[TimeControl "180+1"]
[EndTime "12:56:36 PDT"]
[Termination "FGHSMN won on time"]

1. e4 {[%clk 0:03:00.9]} 1... c5 {[%clk 0:02:59.7]} 2. Nf3 {[%clk 0:03:01]} 2...
d6 {[%clk 0:03:00.1]} 3. d4 {[%clk 0:03:01.3]} 3... cxd4 {[%clk 0:03:00.7]} 4.
Nxd4 {[%clk 0:03:02.1]} 4... Nf6 {[%clk 0:03:01.3]} 5. Nc3 {[%clk 0:03:02.6]}
5... a6 {[%clk 0:03:01.8]} 6. Be2 {[%clk 0:03:03]} 6... e5 {[%clk 0:03:01.4]} 7.
Nb3 {[%clk 0:03:03.7]} 7... Be7 {[%clk 0:03:01.5]} 8. Be3 {[%clk 0:03:04.2]}
8... Be6 {[%clk 0:03:00.5]} 9. g4 {[%clk 0:03:04.1]} 9... h6 {[%clk 0:02:57.8]}
10. h4 {[%clk 0:03:03.4]} 10... Nc6 {[%clk 0:02:52.8]} 11. Rg1 {[%clk 0:03:01]}
11... d5 {[%clk 0:02:30.2]} 12. exd5 {[%clk 0:02:39.9]} 12... Nxd5 {[%clk
0:02:31.1]} 13. Nxd5 {[%clk 0:02:39.2]} 13... Qxd5 {[%clk 0:02:30.1]} 14. Qxd5
{[%clk 0:02:33]} 14... Bxd5 {[%clk 0:02:31]} 15. g5 {[%clk 0:02:32.5]} 15...
hxg5 {[%clk 0:02:29.9]} 16. hxg5 {[%clk 0:02:33.4]} 16... O-O-O {[%clk
0:02:07.8]} 17. O-O-O {[%clk 0:02:32.2]} 17... Kc7 {[%clk 0:02:02.1]} 18. Nc5
{[%clk 0:02:15.9]} 18... Nd4 {[%clk 0:01:57]} 19. Bxd4 {[%clk 0:02:05.5]} 19...
exd4 {[%clk 0:01:57.9]} 20. Nb3 {[%clk 0:02:05.4]} 20... Rh2 {[%clk 0:01:49.8]}
21. Nxd4 {[%clk 0:01:43.3]} 21... Rxf2 {[%clk 0:01:42.4]} 22. Bd3 {[%clk
0:01:38]} 22... Bc5 {[%clk 0:01:32.5]} 23. Nb3 {[%clk 0:01:12.9]} 23... Be3+
{[%clk 0:01:27.1]} 24. Kb1 {[%clk 0:01:13]} 24... Rf3 {[%clk 0:01:04.8]} 25. Rg4
{[%clk 0:00:43.9]} 25... Be6 {[%clk 0:01:01.8]} 26. Rg2 {[%clk 0:00:31]} 26...
Bh3 {[%clk 0:00:59.4]} 27. Re2 {[%clk 0:00:22.4]} 27... Bxg5 {[%clk 0:00:55.7]}
28. Rg1 {[%clk 0:00:20.5]} 28... Bf6 {[%clk 0:00:43]} 29. Nc5 {[%clk 0:00:18.8]}
29... Bd4 {[%clk 0:00:35.4]} 30. Re7+ {[%clk 0:00:05.4]} 30... Kd6 {[%clk
0:00:34.7]} 31. Rge1 {[%clk 0:00:01.2]} 31... Bxc5 {[%clk 0:00:34.1]} 0-1

[Event "*** Titled Tuesday Blitz"]
[Site "Chess.com"]
[Date "2020.05.19"]
[Round "5"]
[White "Rud_Makarian"]
[Black "Robert_Chessmood"]
[Result "0-1"]
[WhiteElo "2569"]
[BlackElo "2898"]
[TimeControl "180+1"]
[EndTime "12:56:41 PDT"]
[Termination "Robert_Chessmood won by resignation"]

1. e4 {[%clk 0:02:53.4]} 1... c6 {[%clk 0:02:59.7]} 2. d4 {[%clk 0:02:52.8]}
2... d5 {[%clk 0:03:00.6]} 3. Nc3 {[%clk 0:02:53.2]} 3... dxe4 {[%clk
0:03:00.4]} 4. Nxe4 {[%clk 0:02:54.1]} 4... Nf6 {[%clk 0:03:01.3]} 5. Nxf6+
{[%clk 0:02:54.2]} 5... exf6 {[%clk 0:03:01.3]} 6. c3 {[%clk 0:02:54.4]} 6...
Bd6 {[%clk 0:03:01.7]} 7. Bd3 {[%clk 0:02:54.5]} 7... Qc7 {[%clk 0:03:01.9]} 8.
Ne2 {[%clk 0:02:51.9]} 8... Bg4 {[%clk 0:03:02.4]} 9. h3 {[%clk 0:02:48.3]} 9...
Bh5 {[%clk 0:03:02.5]} 10. Qc2 {[%clk 0:02:46.3]} 10... Nd7 {[%clk 0:03:00.4]}
11. Be3 {[%clk 0:02:40.4]} 11... O-O-O {[%clk 0:02:49.5]} 12. O-O-O {[%clk
0:02:28.1]} 12... Rhe8 {[%clk 0:02:48.7]} 13. Rhe1 {[%clk 0:02:19]} 13... Kb8
{[%clk 0:02:40.8]} 14. Kb1 {[%clk 0:02:18.8]} 14... Re7 {[%clk 0:02:24.5]} 15.
c4 {[%clk 0:02:04]} 15... Bxe2 {[%clk 0:02:15.1]} 16. Rxe2 {[%clk 0:01:57]}
16... Rde8 {[%clk 0:02:15.2]} 17. Rde1 {[%clk 0:01:52.4]} 17... Bb4 {[%clk
0:02:14.5]} 18. Bd2 {[%clk 0:01:51.5]} 18... Rxe2 {[%clk 0:02:10.1]} 19. Rxe2
{[%clk 0:01:50.4]} 19... Rxe2 {[%clk 0:02:09.6]} 20. Bxe2 {[%clk 0:01:51.3]}
20... Bxd2 {[%clk 0:02:10]} 21. Qxd2 {[%clk 0:01:52.2]} 21... Qd6 {[%clk
0:02:01.3]} 22. Kc2 {[%clk 0:01:42.2]} 22... Nf8 {[%clk 0:01:59.9]} 23. Bf3
{[%clk 0:01:34.5]} 23... Ne6 {[%clk 0:01:58.4]} 24. d5 {[%clk 0:01:34.7]} 24...
cxd5 {[%clk 0:01:43.9]} 25. Qxd5 {[%clk 0:01:32.9]} 25... Qc7 {[%clk 0:01:36.4]}
26. b4 {[%clk 0:01:26.4]} 26... a6 {[%clk 0:01:35.9]} 27. c5 {[%clk 0:01:22.4]}
27... g6 {[%clk 0:01:32.1]} 28. Kb3 {[%clk 0:01:21]} 28... f5 {[%clk 0:01:28.9]}
29. g3 {[%clk 0:01:16.2]} 29... h5 {[%clk 0:01:28.5]} 30. h4 {[%clk 0:01:16.2]}
30... f4 {[%clk 0:01:28.7]} 31. a3 {[%clk 0:01:08.8]} 31... fxg3 {[%clk
0:01:25.6]} 32. fxg3 {[%clk 0:01:09.7]} 32... Nd8 {[%clk 0:01:10.9]} 33. Qd6
{[%clk 0:00:50]} 33... Qxd6 {[%clk 0:00:32.2]} 34. cxd6 {[%clk 0:00:50.9]} 34...
Kc8 {[%clk 0:00:27.3]} 35. Kc4 {[%clk 0:00:50.4]} 35... b6 {[%clk 0:00:24.7]}
36. b5 {[%clk 0:00:38.4]} 36... a5 {[%clk 0:00:19.9]} 37. Bc6 {[%clk 0:00:36.1]}
37... Ne6 {[%clk 0:00:18.1]} 38. Bd7+ {[%clk 0:00:35.5]} 38... Kxd7 {[%clk
0:00:17.4]} 0-1

[Event "*** Titled Tuesday Blitz"]
[Site "Chess.com"]
[Date "2020.05.19"]
[Round "5"]
[White "SGchess01"]
[Black "IljaJoke"]
[Result "1-0"]
[WhiteElo "2729"]
[BlackElo "2529"]
[TimeControl "180+1"]
[EndTime "12:56:41 PDT"]
[Termination "SGchess01 won on time"]

1. e4 {[%clk 0:02:20.5]} 1... e5 {[%clk 0:02:59.1]} 2. Nf3 {[%clk 0:02:19.5]}
2... Nc6 {[%clk 0:02:59.2]} 3. Bb5 {[%clk 0:02:14.2]} 3... a6 {[%clk 0:02:58.7]}
4. Ba4 {[%clk 0:02:13.9]} 4... Nf6 {[%clk 0:02:58.9]} 5. O-O {[%clk 0:02:01.4]}
5... Be7 {[%clk 0:02:58.9]} 6. d3 {[%clk 0:02:01.1]} 6... b5 {[%clk 0:02:57.8]}
7. Bb3 {[%clk 0:02:01.5]} 7... d6 {[%clk 0:02:57]} 8. Bd2 {[%clk 0:01:59.7]}
8... Bg4 {[%clk 0:02:41.2]} 9. c3 {[%clk 0:01:57.7]} 9... O-O {[%clk 0:02:37.1]}
10. h3 {[%clk 0:01:57.6]} 10... Bd7 {[%clk 0:02:37.1]} 11. Be3 {[%clk
0:01:55.7]} 11... Na5 {[%clk 0:02:36.3]} 12. Bc2 {[%clk 0:01:55.5]} 12... c5
{[%clk 0:02:36.5]} 13. Nbd2 {[%clk 0:01:55.6]} 13... Re8 {[%clk 0:02:31.2]} 14.
a3 {[%clk 0:01:54]} 14... c4 {[%clk 0:02:01.8]} 15. d4 {[%clk 0:01:49.7]} 15...
Qc7 {[%clk 0:01:57.2]} 16. Re1 {[%clk 0:01:47.5]} 16... h6 {[%clk 0:01:18.9]}
17. Nf1 {[%clk 0:01:33.6]} 17... Bf8 {[%clk 0:01:18.9]} 18. Ng3 {[%clk
0:01:33.3]} 18... g6 {[%clk 0:01:19.3]} 19. Qd2 {[%clk 0:01:28]} 19... Kh7
{[%clk 0:01:18.5]} 20. Nh2 {[%clk 0:01:22.6]} 20... Bg7 {[%clk 0:01:16]} 21. f4
{[%clk 0:01:21.8]} 21... exf4 {[%clk 0:01:04.4]} 22. Bxf4 {[%clk 0:01:21.3]}
22... Qb6 {[%clk 0:01:04.7]} 23. Nf3 {[%clk 0:01:16.5]} 23... Rad8 {[%clk
0:00:55]} 24. Rf1 {[%clk 0:01:16]} 24... Bc6 {[%clk 0:00:53.6]} 25. Rae1 {[%clk
0:01:13.5]} 25... Bb7 {[%clk 0:00:47]} 26. Kh2 {[%clk 0:01:11.9]} 26... Nb3
{[%clk 0:00:44.6]} 27. Qd1 {[%clk 0:01:07.3]} 27... a5 {[%clk 0:00:41.4]} 28. e5
{[%clk 0:01:05.6]} 28... dxe5 {[%clk 0:00:41.5]} 29. Nxe5 {[%clk 0:01:05.4]}
29... Bd5 {[%clk 0:00:30.5]} 30. h4 {[%clk 0:00:55.8]} 30... Kh8 {[%clk
0:00:21.9]} 31. h5 {[%clk 0:00:53.8]} 31... gxh5 {[%clk 0:00:17.3]} 32. Nxh5
{[%clk 0:00:53.3]} 32... Nxh5 {[%clk 0:00:11.5]} 33. Qxh5 {[%clk 0:00:54.2]}
33... Qe6 {[%clk 0:00:04.8]} 34. Ng4 {[%clk 0:00:48.2]} 34... Qxe1 {[%clk
0:00:03.1]} 35. Rxe1 {[%clk 0:00:47.9]} 35... Rxe1 {[%clk 0:00:04]} 36. Bxh6
{[%clk 0:00:48]} 1-0